fUST/lending_fUST_20251004
["ID","MTS","AMOUNT","RATE_DAILY","PERIOD"]
[388977924,1759553445130,-500.0,0.00024657,9]
[388977926,1759553445139,-500.0,0.00024657,9]
[388977929,1759553445149,-206.294112,0.00024657,9]
[388977930,1759553445158,-231.48,0.00024657,9]
[388977932,1759553445168,-500.0,0.00024657,9]
[388977934,1759553445178,-3636.15,0.00024657,9]
[388977937,1759553445187,-500.0,0.00024657,9]
[388977938,1759553445197,-500.0,0.00024657,9]
[388977941,1759553445206,-1865.25,0.00024657,9]
[388977943,1759553445216,-1150.37,0.00024657,9]
[388977945,1759553445226,-500.0,0.00024657,9]
[388977946,1759553445235,-500.0,0.00024657,9]
[388977948,1759553445244,-331.67024532,0.00024657,9]
[388977950,1759553445253,-465.43402694,0.00024657,9]
[388977952,1759553445263,-500.0,0.00024657,9]
[388977954,1759553445272,-1025.62,0.00024657,9]
[388977957,1759553445282,-500.0,0.00024657,9]
[388977958,1759553445291,-500.0,0.00024657,9]
[388977960,1759553445300,-500.0,0.00024657,9]
[388977962,1759553445311,-706.12,0.00024657,9]
[388977965,1759553445322,-698.5,0.00024657,9]
[388977966,1759553445331,-610.58,0.00024657,9]
[388977969,1759553445341,-751.65,0.00024657,9]
[388977970,1759553445351,-574.89,0.00024657,9]
[388977972,1759553445360,-694.13,0.00024657,9]
[388977974,1759553445370,-500.0,0.00024657,9]
[388977976,1759553445379,-500.0,0.00024657,9]
[388977978,1759553445389,-500.0,0.00024657,9]
[388977980,1759553445398,-500.0,0.00024657,9]
[388977982,1759553445407,-6485.69,0.00024657,9]
[388977985,1759553445418,-500.0,0.00024657,9]
[388977986,1759553445427,-500.0,0.00024657,9]
[388977988,1759553445436,-500.0,0.00024657,9]
[388977991,1759553445445,-500.0,0.00024657,9]
[388977992,1759553445455,-727.05,0.00024657,9]
[388977994,1759553445466,-655.6,0.00024657,9]
[388977997,1759553445475,-530.01,0.00024657,9]
[388977998,1759553445485,-728.45,0.00024657,9]
[388978001,1759553445494,-1829.94,0.00024657,9]
[388978002,1759553445503,-628.75,0.00024657,9]
[388978004,1759553445512,-1815.8,0.00024657,9]
[388978007,1759553445522,-2290.72,0.00024657,9]
[388978008,1759553445531,-500.0,0.00024657,9]
[388978010,1759553445541,-4983.48,0.00024657,9]
[388978012,1759553445550,-558.41,0.00024657,9]
[388978014,1759553445560,-500.0,0.00024657,9]
[388978016,1759553445570,-500.0,0.00024657,9]
[388978018,1759553445579,-500.0,0.00024657,9]
[388978021,1759553445589,-669.64,0.00024657,9]
[388978022,1759553445598,-1068.45,0.00024657,9]
[388978024,1759553445607,-500.0,0.00024657,9]
[388978027,1759553445617,-500.0,0.00024657,9]
[388978028,1759553445626,-4338.16,0.00024657,9]
[388978030,1759553445635,-705.87,0.00024657,9]
[388978032,1759553445644,-500.0,0.00024657,9]
[388978034,1759553445654,-748.26,0.00024657,9]
[388978037,1759553445663,-1363.25,0.00024657,9]
[388978039,1759553445672,-512.23,0.00024657,9]
[388978041,1759553445682,-1508.74,0.00024657,9]
[388978043,1759553445694,-500.0,0.00024657,9]
[388978045,1759553445703,-500.0,0.00024657,9]
[388978047,1759553445712,-500.0,0.00024657,9]
[388978049,1759553445721,-500.0,0.00024657,9]
[388978051,1759553445730,-1489.94,0.00024657,9]
[388978053,1759553445739,-800.76,0.00024657,9]
[388978055,1759553445749,-500.0,0.00024657,9]
[388978057,1759553445758,-151.0,0.00024657,7]
[388978058,1759553445766,-500.0,0.00024657,9]
[388978061,1759553445775,-986.44,0.00024657,9]
[388978063,1759553445785,-500.0,0.00024657,9]
[388978065,1759553445795,-500.0,0.00024657,9]
[388978067,1759553445804,-2536.51,0.00024657,9]
[388978069,1759553445816,-823.27,0.00024657,9]
[388978071,1759553445826,-151.0,0.00024657,7]
[388978073,1759553445835,-1674.7,0.00024657,9]
[388978075,1759553445844,-151.0,0.00024657,7]
[388978077,1759553445854,-996.82,0.00024657,9]
[388978079,1759553445863,-500.0,0.00024657,9]
[388978081,1759553445871,-500.0,0.00024657,9]
[388978083,1759553445881,-151.0,0.00024657,7]
[388978085,1759553445891,-500.0,0.00024657,9]
[388978087,1759553445900,-151.0,0.00024657,7]
[388978089,1759553445909,-993.12,0.00024657,9]
[388978091,1759553445918,-500.0,0.00024657,9]
[388978093,1759553445928,-500.0,0.00024657,9]
[388978095,1759553445937,-500.0,0.00024657,9]
[388978097,1759553445946,-500.0,0.00024657,9]
[388978099,1759553445955,-614.89,0.00024657,9]
[388978101,1759553445966,-500.0,0.00024657,9]
[388978103,1759553445976,-4042.09,0.00024657,9]
[388978105,1759553445986,-500.0,0.00024657,9]
[388978107,1759553445995,-500.0,0.00024657,9]
[388978109,1759553446004,-1743.34,0.00024657,9]
[388978111,1759553446012,-1314.4,0.00024657,9]
[388978113,1759553446022,-500.0,0.00024657,9]
[388978115,1759553446031,-500.0,0.00024657,9]
[388978117,1759553446040,-196.01399942,0.00024657,9]
[388978119,1759553446049,-2916.2,0.00024657,9]
[388978121,1759553446059,-1986.41,0.00024657,9]
[388978123,1759553446068,-500.0,0.00024657,9]
[388978125,1759553446077,-1054.83,0.00024657,9]
[388978127,1759553446085,-1154.09,0.00024657,9]
[388978129,1759553446096,-500.0,0.00024657,9]
[388978130,1759553446105,-1583.31,0.00024657,9]
[388978132,1759553446114,-1359.72,0.00024657,9]
[388978134,1759553446124,-500.0,0.00024657,7]
[388978136,1759553446133,-500.0,0.00024657,9]
[388978139,1759553446142,-897.67,0.00024657,9]
[388978141,1759553446151,-707.3,0.00024657,9]
[388978143,1759553446159,-500.0,0.00024657,9]
[388978145,1759553446169,-2306.83,0.00024657,9]
[388978147,1759553446178,-500.0,0.00024657,9]
[388978149,1759553446187,-151.0,0.00024657,7]
[388978151,1759553446198,-603.82,0.00024657,9]
[388978153,1759553446207,-1452.82,0.00024657,9]
[388978155,1759553446216,-500.0,0.00024657,9]
[388978157,1759553446226,-151.0,0.00024657,7]
[388978159,1759553446235,-151.0,0.00024657,7]
[388978161,1759553446244,-10500.59,0.00024657,9]
[388978163,1759553446255,-500.0,0.00024657,9]
[388978166,1759553446265,-500.0,0.00024657,9]
[388978168,1759553446274,-500.0,0.00024657,9]
[388978170,1759553446284,-500.0,0.00024657,9]
[388978172,1759553446293,-758.89,0.00024657,9]
[388978174,1759553446302,-616.32691521,0.00024657,9]
[388978176,1759553446312,-500.0,0.00024657,9]
[388978178,1759553446321,-214.30396273,0.00024657,9]
[388978180,1759553446330,-452.22086464,0.00024657,9]
[388978182,1759553446340,-633.88,0.00024657,9]
[388978184,1759553446349,-500.0,0.00024657,9]
[388978186,1759553446359,-2117.15,0.00024657,2]
[388978188,1759553446369,-151.0,0.00024657,7]
[388978190,1759553446379,-2321.8,0.00024657,9]
[388978192,1759553446388,-500.0,0.00024657,9]
[388978194,1759553446397,-151.0,0.00024657,7]
[388978195,1759553446407,-500.0,0.00024657,9]
[388978196,1759553446416,-500.0,0.00024657,9]
[388978197,1759553446426,-586.23,0.00024657,9]
[388978198,1759553446436,-500.0,0.00024657,9]
[388978199,1759553446446,-1324.46,0.00024657,9]
[388978200,1759553446455,-500.0,0.00024657,9]
[388978201,1759553446465,-500.0,0.00024657,9]
[388978202,1759553446475,-500.0,0.00024657,9]
[388978203,1759553446485,-237.859095,0.00024658,7]
[388978204,1759553446495,-237.859095,0.00024658,7]
[388978205,1759553446505,-237.859095,0.00024658,7]
[388978206,1759553446515,-237.859095,0.00024658,7]
[388978207,1759553446524,-168.0,0.00024658,2]
[388978208,1759553446534,-500.0,0.00024673,2]
[388978209,1759553446544,-500.0,0.00024673,2]
[388978210,1759553446553,-481.28229901,0.00024673,2]
[388978213,1759553446563,-421.39693963,0.00024673,2]
[388978214,1759553446573,-500.0,0.00024673,2]
[388978217,1759553446582,-500.0,0.00024673,2]
[388978219,1759553446592,-501.82208464,0.00024673,2]
[388978221,1759553446604,-500.0,0.00024673,2]
[388978222,1759553446613,-501.82380182,0.00024673,2]
[388978225,1759553446623,-500.0,0.00024673,2]
[388978227,1759553446633,-500.0,0.00024673,2]
[388978229,1759553446642,-500.0,0.00024673,2]
[388978230,1759553446652,-500.0,0.00024673,2]
[388978232,1759553446661,-500.0,0.00024673,2]
[388978235,1759553446671,-500.0,0.00024673,2]
[388978236,1759553446681,-507.66409169,0.00024673,2]
[388978238,1759553446696,-500.0,0.00024673,2]
[388978241,1759553446706,-805.66327431,0.00024714,2]
[388978243,1759553446717,-168.0,0.00024756,2]
[388978245,1759553446727,-621.76242606,0.00024873,2]
[388978247,1759553446736,-500.0,0.00024873,2]
[388978249,1759553446745,-500.86093508,0.00024873,2]
[388978251,1759553446755,-500.37899681,0.00024873,2]
[388978253,1759553446765,-500.76066247,0.00024873,2]
[388978255,1759553446774,-500.0,0.00024873,2]
[388978257,1759553446783,-500.0,0.00024873,2]
[388978259,1759553446792,-500.0,0.00024873,2]
[388978261,1759553446802,-500.0,0.00024873,2]
[388978263,1759553446813,-301.94381484,0.00024873,2]
[388978265,1759553446822,-501.06751975,0.00024873,2]
[388978267,1759553446831,-500.64857616,0.00024873,2]
[388978269,1759553446842,-500.0,0.00024873,2]
[388978272,1759553446851,-500.0,0.00024873,2]
[388978274,1759553446862,-500.0,0.00024873,2]
[388978276,1759553446871,-522.55996504,0.00024873,2]
[388978278,1759553446881,-500.0,0.00024873,2]
[388978280,1759553446891,-500.0,0.00024873,2]
[388978282,1759553446901,-501.08287927,0.00024873,2]
[388978284,1759553446910,-500.0,0.00024873,2]
[388978286,1759553446919,-500.0,0.00024873,2]
[388978288,1759553446929,-500.0,0.00024873,2]
[388978290,1759553446939,-501.0894227,0.00024873,2]
[388978292,1759553446948,-500.0,0.00024873,2]
[388978294,1759553446958,-500.0,0.00024873,2]
[388978296,1759553446968,-500.71497275,0.00024873,2]
[388978298,1759553446977,-500.33159284,0.00024873,2]
[388978300,1759553446987,-500.49192155,0.00024873,2]
[388978302,1759553446996,-500.0,0.00024873,2]
[388978304,1759553447007,-500.0,0.00024873,2]
[388978306,1759553447016,-168.0,0.00024882,2]
[388978308,1759553447026,-293.36416222,0.000249,7]
[388978310,1759553447037,-151.0,0.000249,7]
[388978312,1759553447046,-151.0,0.000249,7]
[388978315,1759553447062,-151.0,0.000249,7]
[388978317,1759553447072,-152.500452,0.000249,7]
[388978319,1759553447083,-202.761842,0.000249,7]
[388978321,1759553447097,-151.0,0.000249,7]
[388978323,1759553447107,-151.0,0.000249,7]
[388978324,1759553447116,-1859.676022,0.000249,7]
[388978326,1759553447126,-1859.676022,0.000249,7]
[388978328,1759553447135,-1859.676022,0.000249,7]
[388978331,1759553447145,-1859.676022,0.000249,7]
[388978333,1759553447154,-128173.13799492,0.000249,2]
[388978336,1759553447178,-781.04,0.000249,2]
[388978339,1759553447195,-874.54482971,0.000249,2]
[388978365,1759553447442,-1086.32,0.00024447,10]
[388978367,1759553447452,-494.671858,0.00024657,7]
[388978369,1759553447462,-97444.55155119,0.000249,2]
[388978415,1759553447893,-494.671858,0.00024657,7]
[388978417,1759553447902,-71.31977367,0.00024657,7]
[388978419,1759553447913,-423.35208433,0.00024657,7]
[388978421,1759553447923,-823.75064749,0.000249,2]
[388978423,1759553447934,-488.14538573,0.000249,2]
[388982519,1759554632140,-285.38032623,0.00021899,2]
[388982520,1759554632149,-183.61307858,0.00021972,2]
[388982522,1759554632159,-254.22905415,0.00021972,2]
[388982525,1759554632180,-762.15786727,0.00021972,2]
[388982527,1759554632189,-507.66409169,0.00021973,2]
[388982529,1759554632198,-500.0,0.00021973,2]
[388982531,1759554632207,-500.0,0.00021973,2]
[388982533,1759554632216,-500.0,0.00021973,2]
[388982535,1759554632226,-300.0,0.00021987,2]
[388982537,1759554632234,-241.0,0.00021987,2]
[388982538,1759554632246,-1329.06,0.00021987,10]
[388982540,1759554632255,-1107.55,0.00021987,10]
[388982542,1759554632264,-451.31,0.00021988,3]
[388982544,1759554632273,-225.66,0.00021988,3]
[388982546,1759554632283,-676.98,0.00021988,3]
[388982548,1759554632292,-500.0,0.00021995,3]
[388982550,1759554632305,-449.92047982,0.00021995,3]
[388982551,1759554632315,-500.0,0.00021995,3]
[388982553,1759554632324,-485.57101425,0.00021995,3]
[388982555,1759554632333,-500.0,0.00021995,3]
[388982557,1759554632343,-1080.88,0.00021995,3]
[388982559,1759554632352,-500.0,0.00021995,3]
[388982561,1759554632360,-615.64,0.00021995,3]
[388982563,1759554632370,-500.0,0.00021995,3]
[388982564,1759554632379,-500.0,0.00021995,3]
[388982566,1759554632388,-500.0,0.00021996,3]
[388982568,1759554632398,-500.0,0.00021996,3]
[388982570,1759554632407,-932.0,0.00021996,3]
[388982572,1759554632417,-500.0,0.00021996,3]
[388982574,1759554632426,-500.0,0.00021996,3]
[388982576,1759554632435,-500.0,0.00021996,3]
[388982577,1759554632444,-656.74,0.00021996,3]
[388982579,1759554632454,-500.0,0.00021996,3]
[388982581,1759554632464,-1654.46,0.00021996,3]
[388982583,1759554632474,-1024.73,0.00021996,3]
[388982585,1759554632483,-1677.6,0.00021996,3]
[388982587,1759554632492,-500.0,0.00021996,3]
[388982589,1759554632501,-500.0,0.00021996,3]
[388982591,1759554632510,-7367.48,0.00021996,3]
[388982592,1759554632519,-500.0,0.00021996,3]
[388982594,1759554632528,-2024.78,0.00021996,3]
[388982596,1759554632537,-500.0,0.00021997,3]
[388982598,1759554632547,-500.0,0.00021997,3]
[388982600,1759554632560,-500.0,0.00021997,3]
[388982602,1759554632569,-500.0,0.00021997,3]
[388982603,1759554632578,-500.0,0.00021997,3]
[388982605,1759554632587,-500.0,0.00021997,3]
[388982607,1759554632597,-500.0,0.00021997,3]
[388982609,1759554632606,-500.0,0.00021997,3]
[388982611,1759554632615,-500.0,0.00021997,3]
[388982612,1759554632624,-1275.24,0.00021997,3]
[388982614,1759554632634,-474.63134413,0.00021997,3]
[388982616,1759554632645,-794.42,0.00021997,3]
[388982618,1759554632654,-500.0,0.00021997,3]
[388982620,1759554632663,-500.0,0.00021997,3]
[388982622,1759554632673,-748.7,0.00021997,3]
[388982624,1759554632682,-500.0,0.00021997,3]
[388982626,1759554632690,-2352.01,0.00021997,3]
[388982627,1759554632700,-1227.05,0.00021997,3]
[388982629,1759554632709,-500.0,0.00021997,3]
[388982631,1759554632718,-2999.67,0.00021997,3]
[388982633,1759554632728,-1498.83,0.00021997,3]
[388982635,1759554632737,-255.04143448,0.00021997,3]
[388982819,1759554637766,-500.0,0.00021995,2]
[388982821,1759554637776,-500.0,0.00021995,2]
[388982823,1759554637786,-500.0,0.00021995,2]
[388982825,1759554637795,-500.0,0.00021995,2]
[388982827,1759554637805,-500.0,0.00021995,2]
[388982829,1759554637815,-500.0,0.00021995,2]
[388982831,1759554637825,-599.16164406,0.00021995,2]
[388982833,1759554637835,-500.0,0.00021995,2]
[388982835,1759554637844,-500.0,0.00021995,2]
[388982837,1759554637855,-500.0,0.00021995,2]
[388982839,1759554637864,-500.0,0.00021995,2]
[388982840,1759554637875,-500.0,0.00021995,2]
[388982841,1759554637884,-500.0,0.00021995,2]
[388982843,1759554637894,-500.0,0.00021995,2]
[388982845,1759554637904,-500.0,0.00021995,2]
[388982847,1759554637914,-500.0,0.00021995,2]
[388982849,1759554637923,-500.0,0.00021995,2]
[388982851,1759554637933,-547.63772233,0.00021995,2]
[388982854,1759554637944,-500.0,0.00021995,2]
[388982855,1759554637953,-500.0,0.00021995,2]
[388982856,1759554637963,-500.0,0.00021995,2]
[388982857,1759554637973,-500.0,0.00021995,2]
[388982858,1759554637983,-500.0,0.00021995,2]
[388982859,1759554637992,-452.48146003,0.00021995,2]
[388982860,1759554638002,-500.0,0.00021995,2]
[388982861,1759554638012,-500.0,0.00021995,2]
[388982862,1759554638022,-344.89638111,0.00021995,2]
[388982863,1759554638032,-500.0,0.00021995,2]
[388982864,1759554638041,-522.67834607,0.00021995,2]
[388982865,1759554638052,-500.0,0.00021995,2]
[388982866,1759554638062,-500.0,0.00021995,2]
[388982867,1759554638071,-500.0,0.00021995,2]
[388982868,1759554638081,-382.57970069,0.00021995,2]
[388982869,1759554638092,-500.0,0.00021995,2]
[388982870,1759554638103,-500.0,0.00021995,2]
[388982871,1759554638114,-500.0,0.00021995,2]
[388982872,1759554638369,-500.0,0.00021995,2]
[388982873,1759554638380,-500.0,0.00021995,2]
[388982874,1759554638390,-500.0,0.00021995,2]
[388982875,1759554638400,-500.0,0.00021995,2]
[388982876,1759554638411,-500.0,0.00021995,2]
[388982877,1759554638421,-500.0,0.00021995,2]
[388982878,1759554638431,-500.0,0.00021995,2]
[388982879,1759554638440,-500.0,0.00021995,2]
[388982880,1759554638450,-500.0,0.00021995,2]
[388982881,1759554638460,-500.0,0.00021995,2]
[388982882,1759554638470,-500.0,0.00021995,2]
[388982883,1759554638480,-500.0,0.00021995,2]
[388982884,1759554638489,-500.0,0.00021995,2]
[388982885,1759554638499,-500.0,0.00021995,2]
[388982886,1759554638509,-500.0,0.00021995,2]
[388982887,1759554638519,-500.0,0.00021995,2]
[388982888,1759554638528,-500.0,0.00021995,2]
[388982889,1759554638538,-500.0,0.00021995,2]
[388982890,1759554638547,-500.0,0.00021995,2]
[388982891,1759554638558,-381.48430788,0.00021995,2]
[388982892,1759554638570,-500.0,0.00021995,2]
[388982893,1759554638580,-500.0,0.00021995,2]
[388982894,1759554638589,-500.0,0.00021995,2]
[388982895,1759554638598,-500.0,0.00021995,2]
[388982896,1759554638611,-500.0,0.00021995,2]
[388982897,1759554638620,-500.0,0.00021995,2]
[388982898,1759554638630,-500.0,0.00021995,2]
[388982899,1759554638641,-500.0,0.00021995,2]
[388982900,1759554638651,-500.0,0.00021995,2]
[388982901,1759554638665,-500.0,0.00021995,2]
[388982902,1759554638675,-500.0,0.00021995,2]
[388982903,1759554638685,-761.32,0.00021996,3]
[388982904,1759554638696,-5842.77,0.00021996,3]
[388982905,1759554638706,-1617.27856552,0.00021997,3]
[388982906,1759554638716,-696.76,0.00021997,3]
[388982907,1759554638726,-1836.87,0.00021997,3]
[388982908,1759554638736,-500.0,0.00021997,3]
[388982909,1759554638745,-560.52,0.00021997,3]
[388982910,1759554638756,-4354.59,0.00021997,3]
[388982911,1759554638765,-500.0,0.00021997,3]
[388982912,1759554638775,-826.39,0.00021997,3]
[388982913,1759554638784,-1319.38,0.00021997,3]
[388982914,1759554638795,-791.26,0.00021997,3]
[388982915,1759554638805,-500.0,0.00021997,3]
[388982916,1759554638815,-2315.56,0.00021997,3]
[388982917,1759554638827,-2225.06,0.00021997,3]
[388982918,1759554638837,-547.06,0.00021997,3]
[388982919,1759554638847,-3357.31,0.00021997,3]
[388982920,1759554638857,-500.0,0.00021997,3]
[388982921,1759554638867,-321.12475038,0.00021998,2]
[388982922,1759554638878,-500.0,0.00021998,3]
[388982923,1759554638891,-500.0,0.00021998,3]
[388982924,1759554638909,-635.38,0.00021998,3]
[388982925,1759554638919,-500.0,0.00021998,3]
[388982926,1759554638929,-500.0,0.00021998,3]
[388982927,1759554638939,-500.0,0.00021998,3]
[388982928,1759554638949,-500.0,0.00021998,3]
[388982929,1759554638958,-500.0,0.00021998,3]
[388982930,1759554638968,-481.24751703,0.00021998,3]
[388982931,1759554638979,-500.0,0.00021998,3]
[388982932,1759554638988,-500.0,0.00021998,3]
[388982933,1759554638998,-500.0,0.00021998,3]
[388982934,1759554639008,-1064.97,0.00021998,3]
[388982935,1759554639018,-500.0,0.00021998,3]
[388982936,1759554639028,-500.0,0.00021998,3]
[388982937,1759554639039,-500.0,0.00021998,3]
[388982938,1759554639048,-626.31,0.00021998,3]
[388982939,1759554639058,-500.0,0.00021998,3]
[388982940,1759554639068,-500.0,0.00021998,3]
[388982941,1759554639078,-500.0,0.00021998,3]
[388982942,1759554639087,-500.0,0.00021998,3]
[388982943,1759554639099,-2272.62,0.00021998,3]
[388982944,1759554639109,-500.0,0.00021998,3]
[388982945,1759554639119,-500.0,0.00021998,3]
[388982946,1759554639128,-500.0,0.00021998,3]
[388982947,1759554639138,-554.92,0.00021998,3]
[388982948,1759554639148,-500.0,0.00021998,3]
[388982949,1759554639158,-500.0,0.00021998,3]
[388982950,1759554639169,-1389.13,0.00021998,3]
[388982951,1759554639180,-679.14,0.00021998,3]
[388982952,1759554639190,-500.0,0.00021998,3]
[388982953,1759554639201,-500.0,0.00021998,3]
[388982954,1759554639211,-963.82,0.00021998,3]
[388982955,1759554639221,-593.27,0.00021998,3]
[388982956,1759554639231,-1069.2,0.00021998,3]
[388982957,1759554639240,-500.0,0.00021998,3]
[388982958,1759554639250,-505.84,0.00021998,3]
[388982959,1759554639260,-500.0,0.00021998,3]
[388982960,1759554639270,-738.2,0.00021998,3]
[388982961,1759554639280,-450.9684212,0.00021998,3]
[388982962,1759554639290,-500.0,0.00021998,3]
[388982963,1759554639302,-640.62,0.00021998,3]
[388982964,1759554639312,-500.0,0.00021998,3]
[388982965,1759554639322,-500.0,0.00021998,3]
[388982966,1759554639333,-500.0,0.00021998,3]
[388982968,1759554639343,-500.0,0.00021998,3]
[388982970,1759554639353,-500.0,0.00021998,3]
[388982972,1759554639362,-1154.66,0.00021998,3]
[388982974,1759554639372,-500.0,0.00021998,3]
[388982976,1759554639383,-466.76390461,0.00021998,3]
[388982979,1759554639393,-500.0,0.00021998,3]
[388982981,1759554639403,-500.0,0.00021998,3]
[388982983,1759554639413,-600.14365041,0.00021998,3]
[388982985,1759554639422,-406.22132863,0.00021998,3]
[388982987,1759554639433,-510.62,0.00021998,3]
[388982989,1759554639442,-500.0,0.00021998,3]
[388982991,1759554639452,-500.0,0.00021998,3]
[388982993,1759554639462,-500.0,0.00021998,3]
[388982995,1759554639472,-1154.72,0.00021998,3]
[388982997,1759554639481,-1942.35,0.00021998,3]
[388982998,1759554639491,-500.0,0.00021998,3]
[388982999,1759554639501,-500.0,0.00021998,3]
[388983000,1759554639510,-322.83737882,0.00021998,3]
[388983001,1759554639520,-532.02,0.00021998,3]
[388983002,1759554639530,-500.0,0.00021998,3]
[388983003,1759554639539,-1891.59,0.00021998,3]
[388983004,1759554639549,-500.0,0.00021998,3]
[388983005,1759554639562,-500.0,0.00021998,3]
[388983006,1759554639571,-537.89,0.00021998,3]
[388983007,1759554639580,-500.0,0.00021998,3]
[388983008,1759554639589,-2546.12,0.00021998,3]
[388983009,1759554639600,-500.0,0.00021998,3]
[388983010,1759554639610,-500.0,0.00021998,3]
[388983011,1759554639619,-996.88,0.00021998,3]
[388983012,1759554639628,-500.0,0.00021998,3]
[388983013,1759554639643,-500.0,0.00021998,3]
[388983014,1759554639653,-359.86182584,0.00021998,3]
[388983015,1759554639662,-899.7,0.00021998,3]
[388983016,1759554639672,-500.0,0.00021998,3]
[388983017,1759554639681,-511.65,0.00021998,3]
[388983018,1759554639690,-398.42588855,0.00021998,3]
[388983019,1759554639699,-500.0,0.00021998,3]
[388983020,1759554639710,-500.0,0.00021998,3]
[388983021,1759554639720,-500.0,0.00021998,3]
[388983023,1759554639729,-500.0,0.00021998,3]
[388983025,1759554639738,-500.0,0.00021998,3]
[388983027,1759554639748,-500.62941618,0.00021998,3]
[388983029,1759554639758,-500.0,0.00021998,3]
[388983031,1759554639767,-463.00733163,0.00021998,3]
[388983033,1759554639776,-500.0,0.00021998,3]
[388983035,1759554639786,-500.0,0.00021998,2]
[388983037,1759554639796,-1403.9,0.00021998,3]
[388983039,1759554639805,-879.84,0.00021998,3]
[388983041,1759554639815,-500.0,0.00021998,3]
[388983043,1759554639825,-678.74,0.00021998,3]
[388983045,1759554639835,-500.0,0.00021998,3]
[388983047,1759554639844,-500.0,0.00021998,3]
[388983049,1759554639854,-701.15,0.00021998,3]
[388983052,1759554639863,-500.0,0.00021998,3]
[388983054,1759554639873,-500.0,0.00021998,3]
[388983056,1759554639882,-729.8,0.00021998,3]
[388983058,1759554639892,-1326.87,0.00021998,3]
[388983060,1759554639908,-500.0,0.00021998,3]
[388983062,1759554639918,-500.0,0.00021998,3]
[388983064,1759554639929,-500.0,0.00021998,3]
[388983066,1759554639940,-500.0,0.00021998,3]
[388983068,1759554639949,-500.0,0.00021998,3]
[388983070,1759554639959,-500.0,0.00021998,3]
[388983072,1759554639968,-634.95716363,0.00021998,3]
[388983074,1759554639977,-500.0,0.00021998,3]
[388983076,1759554639987,-500.0,0.00021998,3]
[388983078,1759554639996,-500.0,0.00021998,3]
[388983080,1759554640005,-1205.45,0.00021998,3]
[388983082,1759554640015,-500.0,0.00021998,3]
[388983084,1759554640024,-500.0,0.00021998,3]
[388983086,1759554640033,-384.98250051,0.00021998,3]
[388983088,1759554640042,-1056.82,0.00021998,3]
[388983090,1759554640052,-500.0,0.00021998,3]
[388983092,1759554640061,-1830.75,0.00021998,3]
[388983094,1759554640070,-500.0,0.00021998,3]
[388983096,1759554640079,-793.03,0.00021998,3]
[388983099,1759554640088,-500.0,0.00021998,3]
[388983101,1759554640097,-1792.92,0.00021998,3]
[388983103,1759554640107,-500.0,0.00021998,3]
[388983105,1759554640116,-500.0,0.00021998,3]
[388983107,1759554640125,-418.52187975,0.00021998,3]
[388983109,1759554640137,-635.34,0.00021998,3]
[388983111,1759554640146,-500.0,0.00021998,3]
[388983114,1759554640155,-813.87,0.00021998,3]
[388983116,1759554640165,-500.0,0.00021998,3]